Department Family,Entity,Date,Expense Type,Expense Area,Supplier,Transaction Number,AP Amount,VAT Registration Number,Purchase Invoice Number,
Department of Health,Bridgewater Community Healthcare NHS Foundation Trust,1/31/2020,External Consultancy Fees,Finance,QE FACILITIES LTD,32659814,"40,000.00",190566980,2210002115,
Department of Health,Bridgewater Community Healthcare NHS Foundation Trust,1/31/2020,Services Received - NHSTs,Willaston GP Practice - Wirral,CHESHIRE AND WIRRAL PARTNERSHIP NHS FOUNDATION TRUST,32949525,"85,237.06",GB654951901,8710020414,
Department of Health,Bridgewater Community Healthcare NHS Foundation Trust,1/31/2020,Continence Products,Continence Adult Halton,ESSITY UK LTD,32982340,"32,644.17",GB 600 4331 06,6401592392,
Department of Health,Bridgewater Community Healthcare NHS Foundation Trust,1/31/2020,Services Received - NHSTs,IT Systems and Management,ST HELENS & KNOWSLEY HOSPITALS NHS TRUST,33012295,"53,321.95",654943996,16790942,
Department of Health,Bridgewater Community Healthcare NHS Foundation Trust,1/31/2020,Phone Rental and Calls,Computing,VODAFONE LTD,33012301,"38,256.75",569953277,93448720,
Department of Health,Bridgewater Community Healthcare NHS Foundation Trust,1/31/2020,Drugs,Medicines Management,NHS BUSINESS SERVICES AUTHORITY,33075746,"87,377.67",281 0607 23,1000059741,
Department of Health,Bridgewater Community Healthcare NHS Foundation Trust,1/31/2020,SrvcsRecd-FoundationTrust,Offender Health - Barton Moss,GREATER MANCHESTER WEST MENTAL HEALTH NHS FOUNDATION TRUST,33114718,"27,746.25",654929594,0000036686,
Department of Health,Bridgewater Community Healthcare NHS Foundation Trust,1/31/2020,SrvcsRecd-FoundationTrust,Offender Health - Risley,GREATER MANCHESTER WEST MENTAL HEALTH NHS FOUNDATION TRUST,33114718,"61,506.84",654929594,0000036686,
Department of Health,Bridgewater Community Healthcare NHS Foundation Trust,1/31/2020,SrvcsRecd-FoundationTrust,Offender Health - St Catherines,GREATER MANCHESTER WEST MENTAL HEALTH NHS FOUNDATION TRUST,33114718,"38,375.33",654929594,0000036686,
Department of Health,Bridgewater Community Healthcare NHS Foundation Trust,1/31/2020,SrvcsRecd-FoundationTrust,Offender Health HM Prison Healthcare (Hindley),GREATER MANCHESTER WEST MENTAL HEALTH NHS FOUNDATION TRUST,33114718,"86,655.58",654929594,0000036686,
Department of Health,Bridgewater Community Healthcare NHS Foundation Trust,1/31/2020,SrvcsRecd-FoundationTrust,Offender Health - Wymott,NATIONAL OFFENDER MANAGEMENT SERVICE,33194344,"81,131.78",,2201838,
Department of Health,Bridgewater Community Healthcare NHS Foundation Trust,1/31/2020,Med & Surg Equip Disp,Continence Adult - Warrington,ESSITY UK LTD,33194365,"52,735.83",GB 600 4331 06,6401602591,
Department of Health,Bridgewater Community Healthcare NHS Foundation Trust,1/31/2020,Med & Surg Equip Disp,Continence Adult - Warrington,ESSITY UK LTD,33194366,"27,503.27",GB 600 4331 06,6401602596,
Department of Health,Bridgewater Community Healthcare NHS Foundation Trust,1/31/2020,Med & Surg Equip Disp,Continence Adult - Warrington,ESSITY UK LTD,33216876,"44,493.01",GB 600 4331 06,6401592386,
Department of Health,Bridgewater Community Healthcare NHS Foundation Trust,1/31/2020,Contr Other External,Management and Safeguarding - Oldham,HOME-START TAMESIDE,33216904,"25,000.00",,HS269,
Department of Health,Bridgewater Community Healthcare NHS Foundation Trust,1/31/2020,Lease Rents,Bath Street,COMMUNITY HEALTH PARTNERSHIPS LTD,33240105,"62,368.10",GB782562113,0060088122,
Department of Health,Bridgewater Community Healthcare NHS Foundation Trust,1/31/2020,Lease Rents,Child Development Centre Orford,COMMUNITY HEALTH PARTNERSHIPS LTD,33240105,"45,396.94",GB782562113,0060088122,
Department of Health,Bridgewater Community Healthcare NHS Foundation Trust,1/31/2020,Lease Rents,Widnes HCRC,COMMUNITY HEALTH PARTNERSHIPS LTD,33240109,"72,681.57",GB782562113,0060101813,
Department of Health,Bridgewater Community Healthcare NHS Foundation Trust,1/31/2020,Lease Rents,Bath Street,COMMUNITY HEALTH PARTNERSHIPS LTD,33240111,"62,368.10",GB782562113,0060101607,
Department of Health,Bridgewater Community Healthcare NHS Foundation Trust,1/31/2020,Lease Rents,Child Development Centre Orford,COMMUNITY HEALTH PARTNERSHIPS LTD,33240111,"45,396.94",GB782562113,0060101607,
Department of Health,Bridgewater Community Healthcare NHS Foundation Trust,1/31/2020,Lease Rents,Widnes HCRC,COMMUNITY HEALTH PARTNERSHIPS LTD,33240112,"77,310.35",GB782562113,0060105047,
Department of Health,Bridgewater Community Healthcare NHS Foundation Trust,1/31/2020,Lease Rents,Bath Street,COMMUNITY HEALTH PARTNERSHIPS LTD,33240114,"62,138.84",GB782562113,0060105486,
Department of Health,Bridgewater Community Healthcare NHS Foundation Trust,1/31/2020,Lease Rents,Child Development Centre Orford,COMMUNITY HEALTH PARTNERSHIPS LTD,33240114,"47,880.77",GB782562113,0060105486,
Department of Health,Bridgewater Community Healthcare NHS Foundation Trust,1/31/2020,Lease Rents,Bath Street,COMMUNITY HEALTH PARTNERSHIPS LTD,33240116,"62,138.84",GB782562113,0060105487,
Department of Health,Bridgewater Community Healthcare NHS Foundation Trust,1/31/2020,Lease Rents,Child Development Centre Orford,COMMUNITY HEALTH PARTNERSHIPS LTD,33240116,"47,880.77",GB782562113,0060105487,
Department of Health,Bridgewater Community Healthcare NHS Foundation Trust,1/31/2020,Lease Rents,Widnes HCRC,COMMUNITY HEALTH PARTNERSHIPS LTD,33240117,"77,310.35",GB782562113,0060110630,
Department of Health,Bridgewater Community Healthcare NHS Foundation Trust,1/31/2020,Lease Rents,Bath Street,COMMUNITY HEALTH PARTNERSHIPS LTD,33240119,"62,138.84",GB782562113,0060110647,
Department of Health,Bridgewater Community Healthcare NHS Foundation Trust,1/31/2020,Lease Rents,Child Development Centre Orford,COMMUNITY HEALTH PARTNERSHIPS LTD,33240119,"47,880.77",GB782562113,0060110647,
Department of Health,Bridgewater Community Healthcare NHS Foundation Trust,1/31/2020,Lease Rents,Widnes HCRC,COMMUNITY HEALTH PARTNERSHIPS LTD,33240120,"77,310.35",GB782562113,0060116777,
Department of Health,Bridgewater Community Healthcare NHS Foundation Trust,1/31/2020,Lease Rents,Widnes HCRC,COMMUNITY HEALTH PARTNERSHIPS LTD,33240123,"77,310.35",GB782562113,0060120953,
Department of Health,Bridgewater Community Healthcare NHS Foundation Trust,1/31/2020,Lease Rents,Bath Street,COMMUNITY HEALTH PARTNERSHIPS LTD,33240126,"62,138.84",GB782562113,0060120964,
Department of Health,Bridgewater Community Healthcare NHS Foundation Trust,1/31/2020,Lease Rents,Child Development Centre Orford,COMMUNITY HEALTH PARTNERSHIPS LTD,33240126,"47,880.77",GB782562113,0060120964,
Department of Health,Bridgewater Community Healthcare NHS Foundation Trust,1/31/2020,Lease Rents,Widnes HCRC,COMMUNITY HEALTH PARTNERSHIPS LTD,33240128,"77,310.35",GB782562113,0060123788,
Department of Health,Bridgewater Community Healthcare NHS Foundation Trust,1/31/2020,Lease Rents,Widnes HCRC,COMMUNITY HEALTH PARTNERSHIPS LTD,33240130,"77,310.35",GB782562113,0060128254,
Department of Health,Bridgewater Community Healthcare NHS Foundation Trust,1/31/2020,Services Received - NHSTs,IT Systems and Management,ST HELENS & KNOWSLEY HOSPITALS NHS TRUST,33240134,"53,321.95",654943996,16791786,
Department of Health,Bridgewater Community Healthcare NHS Foundation Trust,1/31/2020,Services Received - NHSTs,IT Systems and Management,ST HELENS & KNOWSLEY HOSPITALS NHS TRUST,33240157,"53,321.95",654943996,16792486,
